[Event "Romanian Superliga 2024"]
[Site "Mamaia"]
[Date "2024.09.30"]
[Round "3.23"]
[White "Patrascu, Catalin-Lucian"]
[Black "Coca, Cristi-Iulian"]
[Result "0-1"]
[ECO "E94"]
[WhiteElo "2298"]
[BlackElo "2233"]
[Annotator "RC"]
[PlyCount "92"]
[EventDate "2024.09.26"]
[EventType "team-tourn"]
[EventCountry "ROU"]
[SourceTitle "playchess.com"]
[Source "ChessBase"]
[SourceQuality "1"]
[TimeControl "40/5400+30:1800+30"]

1. d4 {[%emt 0:00:04]} Nf6 {[%emt 0:00:10]} 2. c4 {[%emt 0:00:06]} g6 {[%emt 0:00:05]} 3. Nc3 {[%emt 0:00:04]} Bg7 {[%emt 0:00:04]} 4. e4 {[%emt 0:00:04]} d6 {[%emt 0:00:04]} 5. Nf3 {[%emt 0:00:07]} O-O {[%emt 0:00:06]} 6. Be2 {[%emt 0:00:02]} Nbd7 {[%emt 0:00:06]} 7. O-O {[%emt 0:00:16]} e5 {[%emt 0:00:05]} 8. Be3 {[%emt 0:00:24]} Qe7 {[%emt 0:00:04]} 9. d5 {[%emt 0:03:12]} c5 {[%emt 0:01:12]} 10. a3 {[%emt 0:06:15]} h6 {[%emt 0:03:16]} 11. Qc1 {[%emt 0:09:20]} Kh7 {[%emt 0:02:10]} 12. g3 {[%emt 0:04:11]} Ng8 {[%emt 0:02:51]} 13. Nh4 {[%emt 0:04:28]} Ndf6 {[%emt 0:03:47]} 14. f3 {[%emt 0:10:26]} Bh3 {[%emt 0:05:03]} 15. Rf2 {[%emt 0:05:48]} Nh5 {[%emt 0:03:26]} 16. Ng2 {[%emt 0:04:13]} Rae8 {[%emt 0:10:37]} 17. Bd3 {[%emt 0:04:06]} Kh8 {[%emt 0:10:06]} 18. Qc2 {[%emt 0:07:08]} Bf6 {[%emt 0:02:57]} 19. b4 {[%emt 0:03:25]} b6 {[%emt 0:00:08]} 20. Rb1 {[%emt 0:02:32]} Bg5 {[%emt 0:03:00]} 21. Bxg5 {[%emt 0:02:41]} hxg5 {[%emt 0:00:44]} 22. Ne3 {[%emt 0:09:29]} Nh6 {[%emt 0:00:56]} 23. bxc5 {[%emt 0:01:56]} bxc5 {[%emt 0:01:45]} 24. Qc1 {[%emt 0:05:55]} f5 {[%emt 0:02:03]} 25. Bf1 {[%emt 0:00:26]} Bxf1 {[%emt 0:06:19]} 26. Nxf1 {[%emt 0:00:23]} Rb8 {[%emt 0:04:42]} 27. Rfb2 {[%emt 0:04:52]} Rxb2 {[%emt 0:00:14]} 28. Rxb2 {[%emt 0:03:39]} Kg7 {[%emt 0:02:29]} 29. exf5 {[%emt 0:04:15]} gxf5 {[%emt 0:00:44]} 30. Qb1 {[%emt 0:01:49]} Rf7 {[%emt 0:00:10]} 31. Ne2 {[%emt 0:01:48]} e4 {[%emt 0:05:38]} 32. Rb3 {[%emt 0:01:16]} exf3 {[%emt 0:01:23]} 33. Qb2+ {[%emt 0:00:28]} Kh7 {[%emt 0:02:08]} 34. Rxf3 {[%emt 0:01:38]} Qe4 {[%emt 0:00:18]} 35. Re3 {[%emt 0:00:38]} Qxc4 {[%emt 0:00:21]} 36. Qb8 {[%emt 0:00:34]} Qxd5 {[%emt 0:00:43]} 37. Nc3 {[%emt 0:00:29]} Qd4 {[%emt 0:01:57]} 38. Nb5 {[%emt 0:00:30]} Qb2 {[%emt 0:00:05]} 39. Re8 {[%emt 0:00:32]} Ng4 {[%emt 0:00:40]} 40. Kh1 {[%emt 0:00:00]} Nf2+ {[%emt 0:00:00]} 41. Kg1 {[%emt 0:00:38]} Ne4 {[%emt 0:17:02]} 42. Kh1 {[%emt 0:03:43]} a6 {[%emt 0:03:55]} 43. Rf8 {[%emt 0:01:43]} Rxf8 {[%emt 0:00:40]} 44. Qxf8 {[%emt 0:00:01]} Qxb5 {[%emt 0:00:14]} 45. Qxf5+ {[%emt 0:00:59]} Kg7 {[%emt 0:00:11]} 46. Nd2 {[%emt 0:01:42]} Nexg3+ {[%emt 0:00:05]} 0-1

[Event "Romanian Superliga 2024"]
[Site "Mamaia"]
[Date "2024.09.30"]
[Round "3.24"]
[White "Dobre, Claudiu-Cristian"]
[Black "Andronescu, Madalin"]
[Result "1/2-1/2"]
[ECO "E92"]
[WhiteElo "2294"]
[BlackElo "1982"]
[Annotator "RC"]
[PlyCount "132"]
[EventDate "2024.09.26"]
[EventType "team-tourn"]
[EventCountry "ROU"]
[SourceTitle "playchess.com"]
[Source "ChessBase"]
[SourceQuality "1"]
[TimeControl "40/5400+30:1800+30"]

1. c4 {[%emt 0:00:04]} Nf6 {[%emt 0:00:09]} 2. Nc3 {[%emt 0:00:05]} g6 {[%emt 0:00:15]} 3. d4 {[%emt 0:00:07]} Bg7 {[%emt 0:00:17]} 4. e4 {[%emt 0:00:10]} d6 {[%emt 0:00:34]} 5. Nf3 {[%emt 0:00:10]} O-O {[%emt 0:00:22]} 6. Be2 {[%emt 0:00:03]} e5 {[%emt 0:00:25]} 7. d5 {[%emt 0:00:05]} a5 {[%emt 0:00:49]} 8. Bg5 {[%emt 0:00:05]} Na6 {[%emt 0:02:47]} 9. Nd2 {[%emt 0:00:04]} Qe8 {[%emt 0:00:59]} 10. a3 {[%emt 0:15:30]} Bd7 {[%emt 0:01:16]} 11. b3 {[%emt 0:00:50]} h6 {[%emt 0:00:09]} 12. Be3 {[%emt 0:09:35]} Nxe4 {[%emt 0:03:07]} 13. Ndxe4 {[%emt 0:04:06]} f5 {[%emt 0:06:13]} 14. Rb1 {[%emt 0:00:15]} fxe4 {[%emt 0:00:18]} 15. Nxe4 {[%emt 0:05:00]} Bf5 {[%emt 0:07:12]} 16. Bd3 {[%emt 0:00:30]} Qe7 {[%emt 0:01:46]} 17. b4 {[%emt 0:14:45]} axb4 {[%emt 0:00:47]} 18. axb4 {[%emt 0:00:13]} Qh4 {[%emt 0:03:02]} 19. Qc2 {[%emt 0:12:10]} Nb8 {[%emt 0:05:49]} 20. O-O {[%emt 0:00:56]} Nd7 {[%emt 0:06:37]} 21. f3 {[%emt 0:35:05]} Ra3 {[%emt 0:10:03]} 22. Ra1 {[%emt 0:00:43]} Rfa8 {[%emt 0:00:28]} 23. Qb2 {[%emt 0:00:47]} Rxa1 {[%emt 0:03:25]} 24. Rxa1 {[%emt 0:00:06]} Qd8 {[%emt 0:00:05]} 25. g4 {[%emt 0:00:39]} Bxe4 {[%emt 0:02:44]} 26. Bxe4 {[%emt 0:00:14]} Nf6 {[%emt 0:00:59]} 27. Bxg6 {[%emt 0:00:58]} Rxa1+ {[%emt 0:01:23]} 28. Qxa1 {[%emt 0:00:05]} e4 {[%emt 0:00:03]} 29. Qd1 {[%emt 0:00:49]} Qe7 {[%emt 0:00:37]} 30. f4 {[%emt 0:00:29]} c6 {[%emt 0:02:25]} 31. Bf5 {[%emt 0:00:18]} cxd5 {[%emt 0:00:25]} 32. cxd5 {[%emt 0:00:10]} Qc7 {[%emt 0:00:29]} 33. Qc1 {[%emt 0:00:17]} Qxc1+ {[%emt 0:01:22]} 34. Bxc1 {[%emt 0:00:04]} Kf8 {[%emt 0:00:06]} 35. Be6 {[%emt 0:00:09]} Ne8 {[%emt 0:02:08]} 36. Kf2 {[%emt 0:02:06]} Bc3 {[%emt 0:00:51]} 37. Ke3 {[%emt 0:00:29]} Bxb4 {[%emt 0:00:18]} 38. Bb2 {[%emt 0:00:40]} b5 {[%emt 0:07:25]} 39. h4 {[%emt 0:00:24]} Be1 {[%emt 0:00:13]} 40. h5 {[%emt 0:00:00]} b4 {[%emt 0:00:00]} 41. Kxe4 {[%emt 0:01:39]} Bd2 {[%emt 0:03:21]} 42. Bd4 {[%emt 0:13:13]} Bc1 {[%emt 0:09:20]} 43. Be3 {[%emt 0:16:51]} Nf6+ {[%emt 0:02:07]} 44. Kd3 {[%emt 0:00:05]} Bxe3 {[%emt 0:00:49]} 45. Kxe3 {[%emt 0:00:04]} b3 {[%emt 0:00:04]} 46. Kd2 {[%emt 0:01:42]} Ne4+ {[%emt 0:00:09]} 47. Kd3 {[%emt 0:00:08]} Ke7 {[%emt 0:01:30]} 48. Bf5 {[%emt 0:00:12]} Ng3 {[%emt 0:00:23]} 49. Bg6 {[%emt 0:00:41]} b2 {[%emt 0:01:04]} 50. Ke3 {[%emt 0:01:00]} Nf1+ {[%emt 0:00:09]} 51. Ke2 {[%emt 0:00:16]} Nh2 {[%emt 0:00:14]} 52. g5 {[%emt 0:00:09]} hxg5 {[%emt 0:00:49]} 53. fxg5 {[%emt 0:01:05]} Ng4 {[%emt 0:00:06]} 54. h6 {[%emt 0:00:38]} Ne5 {[%emt 0:00:31]} 55. Be4 {[%emt 0:00:28]} Kf7 {[%emt 0:00:22]} 56. Kd1 {[%emt 0:00:19]} Nc4 {[%emt 0:01:15]} 57. Bh7 {[%emt 0:00:29]} Ne3+ {[%emt 0:01:05]} 58. Kd2 {[%emt 0:00:06]} Nxd5 {[%emt 0:00:03]} 59. g6+ {[%emt 0:00:32]} Ke7 {[%emt 0:00:07]} 60. g7 {[%emt 0:00:08]} Nf6 {[%emt 0:00:04]} 61. Bg6 {[%emt 0:01:24]} b1=Q {[%emt 0:03:15]} 62. Bxb1 {[%emt 0:00:04]} Kf7 {[%emt 0:00:05]} 63. Kc3 {[%emt 0:00:56]} Ng8 {[%emt 0:00:09]} 64. Ba2+ {[%emt 0:00:32]} Kg6 {[%emt 0:00:05]} 65. Bxg8 {[%emt 0:00:12]} Kxh6 {[%emt 0:00:06]} 66. Be6 {[%emt 0:00:12]} Kxg7 {[%emt 0:00:06]} 1/2-1/2

[Event "Romanian Superliga 2024"]
[Site "Mamaia"]
[Date "2024.09.30"]
[Round "3.25"]
[White "Mendonca, Leon Luke"]
[Black "Baranciuc, Alexandr"]
[Result "1-0"]
[ECO "C02"]
[WhiteElo "2622"]
[BlackElo "2333"]
[Annotator "TA"]
[PlyCount "75"]
[EventDate "2024.09.26"]
[EventType "team-tourn"]
[EventCountry "ROU"]
[SourceTitle "playchess.com"]
[Source "ChessBase"]
[SourceQuality "1"]
[TimeControl "40/5400+30:1800+30"]

{[%evp 15,75,18,36,2,66,-60,-3,-69,51,0,-7,-13,13,-3,0,0,-14,0,-20,-15,215,209,140,123,116,117,134,124,135,109,105,78,324,303,426,402,402,407,414,423,444,429,457,398,732,718,701,692,2193,2211,29990,29983,7219,6634,2398,1344,1841,1687,1608,1274,5791,1839]} 1. e4 {[%emt 0:00:18]} e6 {[%emt 0:00:29]} 2. d4 {[%emt 0:00:32]} d5 {[%emt 0:00:09]} 3. e5 {[%emt 0:03:33]} c5 {[%emt 0:00:10]} 4. c3 {[%emt 0:00:08]} Nc6 {[%emt 0:00:05]} 5. Nf3 {[%emt 0:00:06]} Qb6 {[%emt 0:00:20]} 6. a3 {[%emt 0:01:13]} c4 {[%emt 0:00:09]} 7. Nbd2 {[%emt 0:00:49]} Na5 {[%emt 0:00:07]} 8. Rb1 {[%emt 0:00:51]} Bd7 {[%emt 0:00:05]} 9. h4 {[%emt 0:01:35] C02: Frans: Doorschuif Variant.} {Zwart heeft er baat bij.} O-O-O {[%emt 1:33:26] Fout (0.6)} (9... Rc8 $11) {Wit doet er goed aan.} 10. Rh3 $5 {[%emt 0:04:58][%mdl 4] Fout (1.3) 10.Be2 zet een nieuwe trend. Een veelbelovende zijvariant.} (10. g3 $14) {Zwart kan het beste.} 10... Kb8 $146 {[%emt 0:00:00] Fout (0.6)} (10... f6 $15) ({Predecessor:} 10... Qc7 11. b3 cxb3 12. Nxb3 Ba4 13. Nfd2 Ne7 14. h5 Nec6 15. Qg4 Kb8 16. Be2 Nxb3 17. Nxb3 {1-0 Noritsyn,N (2450)-Joseph Benher,S (2044) Toronto Ontario op 2024 (6)}) {Wit kan het beste.} 11. h5 {[%emt 0:16:17] Fout (0.7)} (11. Be2 $11) {Zwart doet er goed aan.} 11... h6 {[%emt 0:00:00] Fout (1.2)} (11... f6 $15) {Wit heeft er baat bij.} 12. b3 {[%emt 0:01:47] Fout (0.6)} (12. b4 $14 cxb3 13. c4) 12... cxb3 $11 {[%emt 0:00:00] Beste (Gemakkelijk)} 13. Nxb3 {[%emt 0:00:13]} Ba4 {[%emt 0:00:00] Beste (Gemakkelijk)} 14. Nfd2 {[%emt 0:00:23][%cal Bf3d2,Bd2b3,Bb3d4][%mdl 32] En nu zou Qc2 winnen. EV=24.87. Goes to b5 (dbg)). OK} f6 $1 {[%emt 0:00:00] Sterk} 15. Bd3 {[%emt 0:06:13] Beste (Gemakkelijk)} fxe5 $1 {[%emt 0:00:00] Sterk} 16. dxe5 {[%emt 0:01:06]} Ne7 $1 {[%emt 0:00:00] Sterk} 17. Rh4 {[%emt 0:20:27] OK} Bxb3 {[%emt 0:00:00] en Zwart staat stabiel. Verliest partij (2.3)} (17... d4 $1 $11) 18. Nxb3 $18 {[%emt 0:00:06]} Nec6 {[%emt 0:00:00] Ontwijkt Rb4. OK} 19. Be3 {[%emt 0:15:00]} Qc7 {[%emt 0:00:00] OK} 20. Ra4 {[%emt 0:00:28] [#] Nxa5 zou dodelijk zijn. OK} Nc4 {[%emt 0:00:00] OK} 21. Bxc4 {[%emt 0:00:29] OK} dxc4 {[%emt 0:00:00]} 22. Nd4 $36 {[%emt 0:00:34][%mdl 2048] Wit wil matzetten met Nxc6+. Wit heeft een sterk initiatief.} Bc5 {[%emt 0:00:00] Beste} 23. Rxc4 {[%emt 0:01:13] Wit is actiever. OK} Nxe5 $2 {[%emt 0:00:00] is misschien voordeliger. Verliest partij (2.5)} (23... Na5 $16 24. Ra4 Bb6) 24. Bf4 {[%emt 0:02:18] Beste (Gemakkelijk)} Ka8 {[%emt 0:00:00] is de betere keuze. Fout (1.2)} (24... Rhf8 25. Rb5 (25. Nc6+ $2 Qxc6 26. Qe2 Qxg2 $19) 25... Rxf4 26. Rcxc5 Rfxd4 (26... Re4+ $2 27. Kf1 $18) 27. cxd4 Nc6) 25. Qe2 {[%emt 0:05:02] Beste} Rd5 {[%emt 0:00:00][%cal Oe5d3] OK} 26. Kf1 {[%emt 0:04:24] Beste} (26. Nxe6 Qf7 (26... Bxf2+ $2 27. Kxf2 Qxc4 28. Qxc4 $18) 27. Rxc5 (27. Bxe5 Bxf2+ 28. Kf1 Qxe6 $17) (27. Nxc5 $2 {verliest.} Nxc4 28. Ne6 Rxh5 $19) 27... Rxc5 28. Nxc5 Qxf4 $18) 26... Qb8 {[%emt 0:00:00] [#]} 27. Rxc5 $1 {[%emt 0:05:43][%mdl 512] OK} Rxc5 {[%emt 0:00:00]} 28. Re1 {[%emt 0:00:36] OK} (28. Nxe6 Ra5 29. Rb5 (29. Nxg7 Qd8 $14) 29... Rxb5 30. Qxb5 Qd6 $18) 28... Qe8 {[%emt 0:00:00] OK} 29. Bxe5 {[%emt 0:00:08] OK} Rf8 $2 {[%emt 0:00:00] Fout (3.3)} (29... Qd7 30. Qg4 Re8) 30. Bd6 {[%emt 0:02:02] OK} Rxh5 {[%emt 0:00:00] Zwart is zwak op de donkere velden. OK} 31. Kg1 {[%emt 0:00:17]} (31. Bxf8 $2 Rh1#) 31... Rg8 {[%emt 0:00:00]} 32. Nxe6 {[%emt 0:01:16] Wit dreigt Nc7+ en mat.} Qf7 {[%emt 0:00:00]} 33. Nc7+ {[%emt 0:01:58]} Kb8 {[%emt 0:00:00]} 34. Ne6+ {[%emt 0:00:07] Wit is duidelijk aan het winnen.} Ka8 {[%emt 0:00:00]} 35. c4 {[%emt 0:01:05]} Rf5 {[%emt 0:00:00]} 36. Nc7+ {[%emt 0:00:11]} Kb8 {[%emt 0:00:00]} 37. Nb5+ {[%emt 0:00:30]} Kc8 {[%emt 0:00:00]} 38. Bg3 {[%emt 0:00:23] Blunder waarde: Wit=0.43/Zwart=1.20.  Verliest partij:   	---       	Zwart=2      Fout:        	Wit=3      	Zwart=5      OK:         	Wit=9      	Zwart=6      Beste:        	Wit=4      	Zwart=3      Sterk:        	---       	Zwart=3} (38. Nxa7+ $142 Kd8 39. Qe3 Kd7 40. Qb6 Re5 41. Rxe5 (41. Qc7+ Ke6 $18) 41... Rc8 42. Nxc8 (42. Qxb7+ Kxd6 43. Rd5+ Qxd5 44. Nxc8+ Ke5 45. Qxd5+ Kf6 46. Nd6 Ke7) 42... Qxc4 43. Qxb7+ (43. Re7+ Kxc8 44. Qxb7+ Kd8 45. Qd7#) 43... Kd8 44. Be7+ Ke8 45. Nd6#) 1-0

[Event "Romanian Superliga 2024"]
[Site "Mamaia"]
[Date "2024.09.30"]
[Round "3.26"]
[White "Sapocinic, Semion"]
[Black "Aryan Chopra"]
[Result "0-1"]
[ECO "A28"]
[WhiteElo "2219"]
[BlackElo "2620"]
[Annotator "TA"]
[PlyCount "76"]
[EventDate "2024.09.26"]
[EventType "team-tourn"]
[EventCountry "ROU"]
[SourceTitle "playchess.com"]
[Source "ChessBase"]
[SourceQuality "1"]
[TimeControl "40/5400+30:1800+30"]

{[%evp 9,76,1,13,10,14,13,15,0,20,9,10,7,13,7,7,10,20,0,-8,-12,-13,-28,-22,-35,-18,-24,-18,-101,-51,-42,-62,-58,-59,-61,-67,-50,0,0,10,0,0,0,0,8,12,14,14,-62,-67,-64,-62,-57,-61,-54,-64,-220,-105,-152,-125,-322,-320,-336,-329,-319,-325,-1326,-1326,-29993,-29994]} 1. c4 {[%emt 0:00:03]} e5 {[%emt 0:00:05]} 2. Nc3 {[%emt 0:00:10]} Nf6 {[%emt 0:00:07]} 3. Nf3 {[%emt 0:00:07]} Nc6 {[%emt 0:00:07]} 4. e4 {[%emt 0:00:48]} Bb4 {[%emt 0:00:13]} 5. d3 {[%emt 0:00:19]} d6 {[%emt 0:00:16]} 6. a3 {[%emt 0:00:36]} Bc5 {[%emt 0:00:23][%cal Bb4c5,Bc5b6,Bb6d4][%mdl 32]} 7. b4 {[%emt 0:01:18]} Bb6 {[%emt 0:00:12]} 8. Na4 {[%emt 0:02:28] The position is equal.} Bg4 {[%emt 0:00:53]} 9. Be2 {[%emt 0:01:59]} Bxf3 {[%emt 0:00:25]} 10. Bxf3 {[%emt 0:00:08]} Bd4 {[%emt 0:00:08]} 11. Rb1 {[%emt 0:00:30]} Qe7 {[%emt 0:00:15]} 12. Be3 {[%emt 0:02:32]} a5 {[%emt 0:04:36]} 13. Qb3 {[%emt 0:06:23]} axb4 {[%emt 0:05:41]} 14. axb4 {[%emt 0:00:21]} Nd8 {[%emt 0:00:04]} 15. Nc3 {[%emt 0:02:04]} Ne6 {[%emt 0:06:38]} 16. O-O {[%emt 0:01:57]} h5 {[%emt 0:03:47]} 17. Nd5 {[%emt 0:12:52]} Qd8 {[%emt 0:07:17]} 18. h3 {[%emt 0:04:05]} (18. c5 $11 {keeps the balance.}) 18... c6 {[%emt 0:06:28]} ({Black should play} 18... g5 $17 {And now ...g4 would win.} 19. Bd1 c6 20. Nxf6+ Qxf6) 19. Nxf6+ $15 {[%emt 0:03:57]} Qxf6 {[%emt 0:00:13]} 20. Qd1 {[%emt 0:00:35]} g6 {[%emt 0:02:48]} 21. Qd2 {[%emt 0:19:13]} g5 {[%emt 0:13:36]} 22. Be2 {[%emt 0:09:55]} Nf4 {[%emt 0:16:23]} (22... g4 $15) 23. Bxd4 $11 {[%emt 0:02:22]} exd4 {[%emt 0:00:05]} 24. Ra1 {[%emt 0:00:10]} Ke7 {[%emt 0:02:22]} 25. Ra5 {[%emt 0:04:11]} Rxa5 {[%emt 0:02:05]} 26. bxa5 {[%emt 0:00:22]} Ne6 {[%emt 0:02:32]} 27. Qb4 {[%emt 0:01:56]} Nc5 {[%emt 0:00:22][%cal Og5g4] [#]} 28. f4 {[%emt 0:02:10]} gxf4 $15 {[%emt 0:00:37]} 29. Qd2 {[%emt 0:00:17]} Qg5 {[%emt 0:05:10]} 30. h4 $1 {[%emt 0:04:28]} Qxh4 {[%emt 0:01:10] ...Rg8 would now be deadly.} 31. Rxf4 {[%emt 0:00:07]} Qg3 {[%emt 0:00:03] aiming for ...Nb3.} 32. Rf5 $2 {[%emt 0:00:37] [#]} (32. Rf3 $1 $15 Qg7 33. Qe1) 32... h4 {[%emt 0:04:44]} (32... Rg8 $1 $19 {[%csl Gg8][%cal Rg3g2]} 33. Bf3 h4) 33. Rf3 {[%emt 0:06:30]} (33. e5 $142) 33... Qg6 $40 {[%emt 0:02:06][%mdl 128] White is in trouble. Black is more active.} 34. Qb2 $2 {[%emt 0:01:12]} (34. Qe1 $17) 34... h3 $19 {[%emt 0:00:20][%csl Gh3][%cal Rg6g2]} 35. g3 {[%emt 0:00:18][%cal Og1h2]} h2+ {[%emt 0:00:52]} 36. Kh1 {[%emt 0:00:04] [#]} Rh3 $1 {[%emt 0:00:29]} ({Less strong is} 36... Qg7 37. Bf1 $17) 37. Qb6 $2 {[%emt 0:01:46]} (37. Qxd4 Rxg3 38. Qf2 Rxf3 39. Bxf3) 37... Rxg3 {[%emt 0:00:41]} 38. Qc7+ {[%emt 0:00:10]} Nd7 {[%emt 0:00:27] Weighted Error Value: White=0.57/Black=0.10 (very precise) .  Loses game:     	White=1     	---        Mistake:       	White=5     	Black=3      Inaccurate:     	White=2     	---        OK:         	White=6     	Black=13     Best:        	White=3     	Black=5      Strong:       	White=1     	Black=1} 0-1

[Event "Romanian Superliga 2024"]
[Site "Mamaia"]
[Date "2024.09.30"]
[Round "3.27"]
[White "Nisipeanu, Liviu-Dieter"]
[Black "Tamas, Christian-Arrydan"]
[Result "1-0"]
[ECO "B13"]
[WhiteElo "2580"]
[BlackElo "2137"]
[Annotator "RC"]
[PlyCount "91"]
[EventDate "2024.09.26"]
[EventType "team-tourn"]
[EventCountry "ROU"]
[SourceTitle "playchess.com"]
[Source "ChessBase"]
[SourceQuality "1"]
[TimeControl "40/5400+30:1800+30"]

1. e4 {[%emt 0:00:04]} c6 {[%emt 0:00:07]} 2. d4 {[%emt 0:00:12]} d5 {[%emt 0:00:05]} 3. exd5 {[%emt 0:00:06]} cxd5 {[%emt 0:00:07]} 4. Nf3 {[%emt 0:00:05]} Nc6 {[%emt 0:00:08]} 5. c3 {[%emt 0:00:06]} Bg4 {[%emt 0:00:19]} 6. Be2 {[%emt 0:06:21]} Qc7 {[%emt 0:01:46]} 7. O-O {[%emt 0:01:53]} e6 {[%emt 0:00:10]} 8. Nbd2 {[%emt 0:01:09]} Bd6 {[%emt 0:00:23]} 9. h3 {[%emt 0:00:04]} Bh5 {[%emt 0:00:16]} 10. Ne1 {[%emt 0:02:39]} Bxe2 {[%emt 0:01:20]} 11. Qxe2 {[%emt 0:00:05]} Nf6 {[%emt 0:01:55]} 12. Nd3 {[%emt 0:00:13]} O-O {[%emt 0:00:29]} 13. Nb3 {[%emt 0:04:51]} Rfc8 {[%emt 0:15:56]} 14. Bg5 {[%emt 0:03:54]} Nd7 {[%emt 0:08:24]} 15. f4 {[%emt 0:01:48]} Re8 {[%emt 0:05:53]} 16. Qf3 {[%emt 0:02:18]} Ne7 {[%emt 0:00:16]} 17. g4 {[%emt 0:13:39]} h6 {[%emt 0:10:19]} 18. Bxe7 {[%emt 0:04:09]} Rxe7 {[%emt 0:00:04]} 19. h4 {[%emt 0:00:11]} a5 {[%emt 0:12:55]} 20. Nd2 {[%emt 0:01:25]} b5 {[%emt 0:00:08]} 21. g5 {[%emt 0:00:20]} b4 {[%emt 0:00:58]} 22. c4 {[%emt 0:02:48]} Qa7 {[%emt 0:05:45]} 23. c5 {[%emt 0:00:28]} Bc7 {[%emt 0:00:04]} 24. gxh6 {[%emt 0:03:28]} gxh6 {[%emt 0:00:06]} 25. Kh1 {[%emt 0:01:50]} Kh7 {[%emt 0:00:59]} 26. Rg1 {[%emt 0:00:13]} Nf6 {[%emt 0:00:54]} 27. Ne5 {[%emt 0:00:57]} Qa6 {[%emt 0:00:28]} 28. Rg2 {[%emt 0:02:55]} Rg8 {[%emt 0:07:10]} 29. Rag1 {[%emt 0:02:54]} Ree8 {[%emt 0:02:03]} 30. Nxf7 {[%emt 0:01:08]} Ref8 {[%emt 0:00:49]} 31. Rxg8 {[%emt 0:09:07]} Rxg8 {[%emt 0:00:22]} 32. Rxg8 {[%emt 0:00:11]} Nxg8 {[%emt 0:00:52]} 33. Ne5 {[%emt 0:01:02]} Ne7 {[%emt 0:00:31]} 34. Nd7 {[%emt 0:07:32]} Ng6 {[%emt 0:12:40]} 35. f5 {[%emt 0:07:59]} exf5 {[%emt 0:00:28]} 36. Qxf5 {[%emt 0:00:09]} Qe2 {[%emt 0:00:20]} 37. Nf1 {[%emt 0:00:25]} Kg7 {[%emt 0:09:18]} 38. h5 {[%emt 0:00:57]} Qg2+ {[%emt 0:00:46]} 39. Kxg2 {[%emt 0:00:18]} Nh4+ {[%emt 0:00:05]} 40. Kf2 {[%emt 0:00:00]} Nxf5 {[%emt 0:00:00]} 41. Ne3 {[%emt 0:01:12]} Nxd4 {[%emt 0:03:00]} 42. Nxd5 {[%emt 0:00:09]} Bd8 {[%emt 0:00:49]} 43. Ke3 {[%emt 0:00:53]} Nb5 {[%emt 0:00:47]} 44. Ne5 {[%emt 0:03:36]} Bf6 {[%emt 0:00:34]} 45. Ke4 {[%emt 0:00:54]} Bg5 {[%emt 0:00:50]} 46. Nc6 {[%emt 0:02:21]} 1-0

[Event "Romanian Superliga 2024"]
[Site "Mamaia"]
[Date "2024.09.30"]
[Round "3.28"]
[White "Sabarez, Iulian"]
[Black "Ilinca, Felix-Antonio"]
[Result "0-1"]
[ECO "B22"]
[WhiteElo "2051"]
[BlackElo "2417"]
[Annotator "RC"]
[PlyCount "69"]
[EventDate "2024.09.26"]
[EventType "team-tourn"]
[EventCountry "ROU"]
[SourceTitle "playchess.com"]
[Source "ChessBase"]
[SourceQuality "1"]
[TimeControl "40/5400+30:1800+30"]

1. e4 {[%emt 0:00:27]} c5 {[%emt 0:00:29]} 2. c3 {[%emt 0:00:05]} Nf6 {[%emt 0:01:21]} 3. e5 {[%emt 0:00:22]} Nd5 {[%emt 0:00:33]} 4. Nf3 {[%emt 0:00:32]} e6 {[%emt 0:01:16]} 5. d4 {[%emt 0:00:46]} cxd4 {[%emt 0:00:50]} 6. cxd4 {[%emt 0:00:09]} d6 {[%emt 0:00:58]} 7. Bc4 {[%emt 0:01:25]} Be7 {[%emt 0:00:41]} 8. O-O {[%emt 0:00:52]} O-O {[%emt 0:00:19]} 9. Qe2 {[%emt 0:01:27]} b6 {[%emt 0:02:26]} 10. Bd2 {[%emt 0:09:06]} Bb7 {[%emt 0:02:17]} 11. Nc3 {[%emt 0:00:52]} Nxc3 {[%emt 0:07:58]} 12. Bxc3 {[%emt 0:00:06]} Nd7 {[%emt 0:01:19]} 13. Rfd1 {[%emt 0:09:14]} dxe5 {[%emt 0:09:35]} 14. dxe5 {[%emt 0:24:31]} Qc7 {[%emt 0:07:03]} 15. Bd3 {[%emt 0:01:18]} Nc5 {[%emt 0:03:57]} 16. Bc2 {[%emt 0:05:39]} Bd5 {[%emt 0:06:54]} 17. Bb4 {[%emt 0:12:48]} Rfc8 {[%emt 0:09:12]} 18. Rd4 {[%emt 0:06:54]} a5 {[%emt 0:03:48]} 19. Ba3 {[%emt 0:02:56]} Rab8 {[%emt 0:04:22]} 20. Rc1 {[%emt 0:07:28]} Qb7 {[%emt 0:02:47]} 21. Rg4 {[%emt 0:02:09]} Bxf3 {[%emt 0:10:20]} 22. gxf3 {[%emt 0:04:51]} g6 {[%emt 0:01:32]} 23. h4 {[%emt 0:01:48]} b5 {[%emt 0:01:42]} 24. b3 {[%emt 0:01:25]} Nxb3 {[%emt 0:01:20]} 25. Bxb3 {[%emt 0:02:45]} Bxa3 {[%emt 0:00:08]} 26. Rd1 {[%emt 0:00:10]} Qc6 {[%emt 0:01:43]} 27. h5 {[%emt 0:00:53]} a4 {[%emt 0:00:30]} 28. hxg6 {[%emt 0:00:41]} hxg6 {[%emt 0:01:47]} 29. Qe3 {[%emt 0:02:02]} axb3 {[%emt 0:01:02]} 30. Qh6 {[%emt 0:01:18]} Bf8 {[%emt 0:00:18]} 31. Rxg6+ {[%emt 0:00:24]} fxg6 {[%emt 0:00:07]} 32. Qxg6+ {[%emt 0:00:03]} Bg7 {[%emt 0:00:09]} 33. Rd6 {[%emt 0:00:11]} Qe8 {[%emt 0:00:07]} 34. Qg4 {[%emt 0:00:11]} b2 {[%emt 0:00:32]} 35. Rxe6 {[%emt 0:00:09]} 0-1